[Event "4NCL Div 1 2024-25"]
[Site "England"]
[Date "2024.11.24"]
[Round "2.14"]
[White "Cyborowski, Lukasz"]
[Black "Eggleston, David J"]
[Result "1/2-1/2"]
[Annotator "TA"]
[ECO "A17"]
[WhiteElo "2454"]
[BlackElo "2339"]
[PlyCount "33"]
[EventDate "2024.11.23"]
[EventType "team-tourn"]
[EventCountry "ENG"]
[SourceTitle "playchess.com"]
[Source "ChessBase"]
[SourceQuality "1"]
[TimeControl "40/6000+30:3000+30"]

{[%evp 19,33,29,32,32,36,27,33,18,34,41,48,29,26,27,24,11]} 1. Nf3 {[%emt 0:10:04]} Nf6 {[%emt 1:41:00]} 2. c4 {[%emt 0:00:22]} e6 {[%emt 0:00:00]} 3. Nc3 {[%emt 0:00:40]} Bb4 {[%emt 0:00:00]} 4. Qc2 {[%emt 0:01:19]} O-O {[%emt 0:00:00]} 5. a3 {[%emt 0:00:41]} Bxc3 {[%emt 0:00:00]} 6. Qxc3 {[%emt 0:00:06]} b6 {[%emt 0:00:00]} 7. b4 {[%emt 0:03:58]} d6 {[%emt 0:00:00]} 8. Bb2 {[%emt 0:02:20]} Bb7 {[%emt 0:00:00]} 9. e3 {[%emt 0:02:05]} Nbd7 {[%emt 0:00:00]} 10. Be2 {[%emt 0:02:16]} Qe7 {[%emt 0:00:00]} 11. O-O {[%emt 0:03:37]} Rfe8 {[%emt 0:00:00]} 12. d3 {[%emt 0:07:22]} c5 {[%emt 0:00:00]} 13. Nd2 {[%emt 0:11:59] White is slightly better.} d5 {[%emt 0:00:00]} 14. cxd5 {[%emt 0:15:13]} exd5 {[%emt 0:00:00][%cal Od5d4]} 15. bxc5 {[%emt 0:00:39]} bxc5 {[%emt 0:00:00][%cal Od5d4]} 16. Bf3 {[%emt 0:02:23]} Qd6 {[%emt 0:00:00]} 17. Qc2 {[%emt 0:07:03] Weighted Error Value: White=0.06 (flawless) /Black=0.04 (flawless) .  OK:         	White=2     	Black=1} 1/2-1/2

[Event "4NCL Div 1 2024-25"]
[Site "England"]
[Date "2024.11.24"]
[Round "2.15"]
[White "Pert, Max"]
[Black "Galyas, Miklos"]
[Result "1/2-1/2"]
[Annotator "TA"]
[ECO "D37"]
[WhiteElo "2076"]
[BlackElo "2374"]
[PlyCount "35"]
[EventDate "2024.11.23"]
[EventType "team-tourn"]
[EventCountry "ENG"]
[SourceTitle "playchess.com"]
[Source "ChessBase"]
[SourceQuality "1"]
[TimeControl "40/6000+30:3000+30"]

{[%evp 16,35,19,14,29,0,0,0,0,0,21,8,45,49,51,29,70,12,21,0,55,0]} 1. d4 {[%emt 0:10:04]} d5 {[%emt 0:10:07]} 2. Nf3 {[%emt 0:00:25]} e6 {[%emt 0:00:14]} 3. c4 {[%emt 0:00:36]} Nf6 {[%emt 0:00:16]} 4. Nc3 {[%emt 0:00:39]} Be7 {[%emt 0:00:07]} 5. Bf4 {[%emt 0:00:45]} O-O {[%emt 0:00:08]} 6. e3 {[%emt 0:00:41]} b6 {[%emt 0:00:06]} 7. Bd3 {[%emt 0:02:25]} dxc4 {[%emt 0:15:25]} 8. Bxc4 {[%emt 0:00:09]} Bb7 {[%emt 0:00:09]} 9. O-O {[%emt 0:02:31]} a6 {[%emt 0:19:42]} 10. a4 {[%emt 0:04:53]} c5 {[%emt 0:09:12]} 11. Qe2 {[%emt 0:10:50]} cxd4 {[%emt 0:00:49]} 12. Nxd4 {[%emt 0:01:44]} Nbd7 {[%emt 0:01:02] And now ...e5 would win.} 13. Bg3 {[%emt 0:02:18]} Nc5 {[%emt 0:11:49]} 14. Rfd1 {[%emt 0:03:03][%cal Od4e6] Hoping for Nxe6!.} Qe8 {[%emt 0:01:33]} 15. Bc7 {[%emt 0:11:04]} Bd8 {[%emt 0:01:18]} 16. Bd6 {[%emt 0:03:54] White has more active pieces.} (16. Bxd8 $14 Rxd8 17. b4) 16... Be7 $11 {[%emt 0:00:05]} 17. Bc7 {[%emt 0:00:49]} Bd8 {[%emt 0:00:23]} 18. Bd6 {[%emt 0:01:21]} ({White should try} 18. Be5 $14) 1/2-1/2

[Event "4NCL Div 1 2024-25"]
[Site "England"]
[Date "2024.11.24"]
[Round "2.16"]
[White "Terbe, Julianna"]
[Black "Pert, Nina"]
[Result "1-0"]
[Annotator "RC"]
[ECO "A96"]
[WhiteElo "2225"]
[BlackElo "1984"]
[PlyCount "95"]
[EventDate "2024.11.23"]
[EventType "team-tourn"]
[EventCountry "ENG"]
[SourceTitle "playchess.com"]
[Source "ChessBase"]
[SourceQuality "1"]
[TimeControl "40/6000+30:3000+30"]

1. d4 {[%emt 0:10:03]} e6 {[%emt 0:10:08]} 2. c4 {[%emt 0:00:10]} f5 {[%emt 0:00:05]} 3. g3 {[%emt 0:00:15]} Nf6 {[%emt 0:00:10]} 4. Bg2 {[%emt 0:00:05]} Be7 {[%emt 0:00:09]} 5. Nf3 {[%emt 0:00:22]} O-O {[%emt 0:00:33]} 6. O-O {[%emt 0:00:06]} d6 {[%emt 0:00:16]} 7. Nc3 {[%emt 0:00:09]} Ne4 {[%emt 0:00:51]} 8. Nxe4 {[%emt 0:00:12]} fxe4 {[%emt 0:00:04]} 9. Ne1 {[%emt 0:00:06]} d5 {[%emt 0:00:11]} 10. Be3 {[%emt 0:00:09]} Nd7 {[%emt 0:00:21]} 11. f3 {[%emt 0:02:18]} Nb6 {[%emt 0:01:11]} 12. cxd5 {[%emt 0:11:30]} Nc4 {[%emt 0:11:52]} 13. Qc1 {[%emt 0:17:22]} Nxe3 {[%emt 0:07:20]} 14. Qxe3 {[%emt 0:00:05]} exf3 {[%emt 0:01:29]} 15. exf3 {[%emt 0:00:08]} exd5 {[%emt 0:00:13]} 16. Nd3 {[%emt 0:01:23]} Qd6 {[%emt 0:08:03]} 17. Rae1 {[%emt 0:07:59]} Bf6 {[%emt 0:00:50]} 18. f4 {[%emt 0:00:22]} b6 {[%emt 0:04:08]} 19. Kh1 {[%emt 0:07:47]} c6 {[%emt 0:07:09]} 20. Ne5 {[%emt 0:03:24]} Ba6 {[%emt 0:05:19]} 21. Rf3 {[%emt 0:06:00]} Rae8 {[%emt 0:06:26]} 22. Qa3 {[%emt 0:01:37]} Bxe5 {[%emt 0:18:20]} 23. dxe5 {[%emt 0:02:07]} Qxa3 {[%emt 0:00:36]} 24. Rxa3 {[%emt 0:00:05]} Bc4 {[%emt 0:01:08]} 25. Rxa7 {[%emt 0:00:23]} Ra8 {[%emt 0:00:35]} 26. Rb7 {[%emt 0:05:53]} Rfb8 {[%emt 0:03:45]} 27. Rxb8+ {[%emt 0:01:11]} Rxb8 {[%emt 0:00:02]} 28. b3 {[%emt 0:00:19]} Ba6 {[%emt 0:01:11]} 29. Kg1 {[%emt 0:03:12]} Kf8 {[%emt 0:01:45]} 30. Kf2 {[%emt 0:00:19]} Ke7 {[%emt 0:00:42]} 31. g4 {[%emt 0:03:07]} Ra8 {[%emt 0:02:36]} 32. a4 {[%emt 0:07:25]} b5 {[%emt 0:02:02]} 33. Rc1 {[%emt 0:06:23]} Kd7 {[%emt 0:00:39]} 34. a5 {[%emt 0:02:22]} b4 {[%emt 0:00:20]} 35. Ke3 {[%emt 0:02:29]} Rb8 {[%emt 0:06:28]} 36. Kd4 {[%emt 0:03:17]} Be2 {[%emt 0:04:22]} 37. g5 {[%emt 0:03:14]} g6 {[%emt 0:01:14]} 38. Bh3+ {[%emt 0:00:03]} Kc7 {[%emt 0:00:13]} 39. f5 {[%emt 0:00:04]} Ba6 {[%emt 0:05:08]} 40. f6 {[%emt 0:00:52]} Rh8 {[%emt 0:00:25]} 41. e6 {[%emt 0:52:39]} Kd6 {[%emt 0:51:56]} 42. e7 {[%emt 0:00:07]} Bb5 {[%emt 0:00:30]} 43. a6 {[%emt 0:03:36]} Ra8 {[%emt 0:00:00]} 44. a7 {[%emt 0:00:00]} Rh8 {[%emt 0:00:00]} 45. Bf1 {[%emt 0:00:00]} c5+ {[%emt 0:00:00]} 46. Rxc5 {[%emt 0:00:00]} Bxf1 {[%emt 0:00:00]} 47. Rxd5+ {[%emt 0:00:00]} Kc7 {[%emt 0:00:00]} 48. f7 {[%emt 0:00:00]} 1-0

[Event "4NCL Div 1 2024-25"]
[Site "England"]
[Date "2024.11.24"]
[Round "2.17"]
[White "Emms, John M"]
[Black "Makkar, Rajat"]
[Result "0-1"]
[Annotator "TA"]
[ECO "B22"]
[WhiteElo "2413"]
[BlackElo "2432"]
[PlyCount "86"]
[EventDate "2024.11.23"]
[EventType "team-tourn"]
[EventCountry "ENG"]
[SourceTitle "playchess.com"]
[Source "ChessBase"]
[SourceQuality "1"]
[TimeControl "40/6000+30:3000+30"]

{[%evp 9,86,23,22,21,27,26,27,11,33,18,19,25,14,6,15,0,40,14,21,15,38,0,0,-26,0,0,0,-8,0,0,0,0,6,0,0,0,7,0,0,-8,0,-83,-89,-91,-90,-123,-118,-294,-289,-280,-272,-894,-877,-895,-882,-881,-271,-818,-815,-1218,-425,-631,-634,-449,-469,-1351,-1188,-1278,-615,-1272,-1173,-29988,-29988,-29990,-29991,-29991,-29992,-29993,-29994]} 1. e4 {[%emt 0:10:49]} c5 {[%emt 0:10:18]} 2. c3 {[%emt 0:04:18]} e5 {[%emt 0:00:11]} 3. Nf3 {[%emt 0:05:08]} Nc6 {[%emt 0:00:09]} 4. Bc4 {[%emt 0:03:03]} Nf6 {[%emt 0:00:13]} 5. d3 {[%emt 0:01:37]} Be7 {[%emt 0:00:22]} 6. O-O {[%emt 0:00:31]} O-O {[%emt 0:00:29]} 7. Re1 {[%emt 0:01:34]} d6 {[%emt 0:00:06]} 8. Nbd2 {[%emt 0:00:49][%cal Bb1d2,Bd2f1,Bf1g3][%mdl 32] White has an edge.} Be6 {[%emt 0:05:40]} 9. Bxe6 {[%emt 0:24:30]} fxe6 {[%emt 0:00:30]} 10. Rb1 {[%emt 0:00:04]} a6 {[%emt 0:13:10]} 11. b4 {[%emt 0:01:32]} b5 {[%emt 0:10:05]} 12. a3 {[%emt 0:06:43]} Nh5 {[%emt 0:05:51]} 13. Nf1 {[%emt 0:05:24]} Qe8 {[%emt 0:02:05]} 14. Be3 {[%emt 0:09:22]} Qg6 {[%emt 0:03:20]} 15. Ng3 {[%emt 0:08:38]} Nf4 {[%emt 0:01:47]} 16. d4 {[%emt 0:08:42]} c4 {[%emt 0:03:48]} 17. d5 {[%emt 0:06:10]} Nd8 {[%emt 0:02:04][%cal Bc6d8,Bd8f7,Bf7g5][%mdl 32]} 18. Bxf4 {[%emt 0:00:25]} exf4 {[%emt 0:01:09]} 19. Nf1 {[%emt 0:01:58]} e5 {[%emt 0:01:09]} 20. a4 {[%emt 0:01:01]} Qf6 {[%emt 0:03:51]} 21. Ra1 {[%emt 0:00:58] Strongly threatening axb5.} Nf7 {[%emt 0:01:46]} 22. h3 {[%emt 0:02:08]} h5 {[%emt 0:06:33]} 23. N3h2 {[%emt 0:03:11]} Qh6 {[%emt 0:00:55]} 24. Re2 {[%emt 0:00:23]} Ng5 {[%emt 0:04:34]} 25. f3 {[%emt 0:01:02]} (25. Nd2 $11) 25... Bd8 $17 {[%emt 0:00:07] Black is more active.} 26. Kh1 {[%emt 0:00:36] Hoping for axb5. White is weak on the dark squares} Bb6 {[%emt 0:00:39]} 27. axb5 {[%emt 0:01:46]} axb5 {[%emt 0:00:26]} 28. Rxa8 $2 {[%emt 0:00:21] Now White is beyond hope.} (28. Rea2 $17 Rab8 29. Ra3) 28... Rxa8 $19 {[%emt 0:00:04]} 29. Qb1 {[%emt 0:00:07]} Qg6 {[%emt 0:07:56][%cal Og5h3] ...Nxh3! would now be deadly.} 30. Ra2 $2 {[%emt 0:00:34]} (30. Nd2) 30... Rxa2 {[%emt 0:05:46]} 31. Qxa2 {[%emt 0:00:01] [#]} Nxh3 $1 {[%emt 0:00:20][%mdl 512] White must now prevent ...Nf2+.} 32. Qa6 {[%emt 0:00:06]} Nf2+ {[%emt 0:00:20]} 33. Kg1 {[%emt 0:00:02]} Be3 {[%emt 0:00:40]} (33... Nxe4+ $2 34. Qxb6 Nxc3 35. Nd2 $19) 34. Qxb5 {[%emt 0:01:00]} Ba7 {[%emt 0:03:14]} (34... Nd3+ $142 35. Kh1 Ne1 36. Nxe3 fxe3) 35. Qb7 {[%emt 0:01:48]} (35. Qa6 $142 Qf7 36. Qxc4) 35... Qf7 {[%emt 0:00:39] ( -> ...Nd1+)} 36. Qc8+ {[%emt 0:00:32]} Kh7 {[%emt 0:00:34]} 37. Qxc4 {[%emt 0:00:13]} (37. g3 $142 h4 (37... Nxe4+ 38. Kg2 $11) 38. Qd8 hxg3 39. Kg2) 37... Nxe4+ {[%emt 0:00:55]} 38. Kh1 {[%emt 0:00:03]} Nf2+ {[%emt 0:00:51]} 39. Kg1 {[%emt 0:00:01]} h4 {[%emt 0:02:52] And now ...h3 would win.} 40. Qa2 {[%emt 0:02:25]} Ne4+ {[%emt 0:00:39] Black mates.} 41. Kh1 {[%emt 0:21:19] [#]} Ng3+ $1 {[%emt 0:20:27]} (41... Nxc3 42. Qc2+ Kg8 43. Qxc3 $18) 42. Nxg3 {[%emt 0:00:07]} hxg3 {[%emt 0:00:08]} ({Less strong is} 42... fxg3 43. Nf1 $15) 43. Qc2+ {[%emt 0:01:47]} Kh8 {[%emt 0:00:22] Weighted Error Value: White=0.83/Black=0.21 (precise) .  Loses game:     	White=1     	---        Mistake:       	White=2     	---        Inaccurate:     	White=5     	Black=1      OK:         	White=8     	Black=8      Best:        	White=1     	Black=2} 0-1

[Event "4NCL Div 1 2024-25"]
[Site "England"]
[Date "2024.11.24"]
[Round "2.18"]
[White "Roberson, Peter T"]
[Black "Navrotescu, Andreea"]
[Result "1/2-1/2"]
[Annotator "TA"]
[ECO "B67"]
[WhiteElo "2432"]
[BlackElo "2338"]
[PlyCount "70"]
[EventDate "2024.11.23"]
[EventType "team-tourn"]
[EventCountry "ENG"]
[SourceTitle "playchess.com"]
[Source "ChessBase"]
[SourceQuality "1"]
[TimeControl "40/6000+30:3000+30"]

{[%evp 16,70,27,22,32,27,33,33,36,-58,-64,-69,-75,-72,-69,-78,-72,-67,-72,-65,-68,-70,-71,-64,-70,-79,-87,-77,-70,-78,-72,-81,-66,-70,-60,-63,-54,-52,-53,-60,-48,-48,-48,-48,-43,-48,-45,-50,-50,-59,-45,-51,-17,-12,0,-54,-32]} 1. e4 {[%emt 0:10:05]} c5 {[%emt 0:10:03]} 2. Nf3 {[%emt 0:00:08]} d6 {[%emt 0:00:05]} 3. d4 {[%emt 0:02:15]} cxd4 {[%emt 0:00:06]} 4. Nxd4 {[%emt 0:00:03]} Nf6 {[%emt 0:00:07]} 5. Nc3 {[%emt 0:00:06]} Nc6 {[%emt 0:00:04]} 6. Bg5 {[%emt 0:02:28]} e6 {[%emt 0:00:09]} 7. Qd2 {[%emt 0:00:08]} a6 {[%emt 0:00:07]} 8. O-O-O {[%emt 0:01:34]} Bd7 {[%emt 0:00:07]} 9. Kb1 {[%emt 0:02:19]} Nxd4 {[%emt 0:01:46]} 10. Qxd4 {[%emt 0:00:05]} Be7 {[%emt 0:00:09]} 11. f3 {[%emt 0:07:46]} b5 {[%emt 0:01:15] White is slightly better.} 12. Qd2 {[%emt 0:05:17]} ({White should play} 12. Bxf6 $14 gxf6 13. f4) 12... b4 $1 $15 {[%emt 0:06:35]} 13. Ne2 {[%emt 0:00:08][%cal Bc3e2,Be2d4,Bd4f3,Bf3e5][%mdl 32] [#]} Nxe4 $1 {[%emt 0:00:55]} 14. fxe4 {[%emt 0:00:36] Hoping for Bxe7.} Bxg5 {[%emt 0:00:06]} 15. Qxd6 {[%emt 0:05:06]} Ba4 {[%emt 0:10:11] This pair of bishops is nice.} 16. Qxd8+ {[%emt 0:07:00]} Bxd8 {[%emt 0:01:07]} 17. Nd4 {[%emt 0:03:36]} Bb6 {[%emt 0:08:21] [#] aiming for ...Rd8.} 18. b3 {[%emt 0:20:44]} Bd7 {[%emt 0:01:10]} 19. Nf3 {[%emt 0:00:22]} Ke7 {[%emt 0:03:25] Dodges Rd6} 20. Ne5 {[%emt 0:00:05]} Be8 {[%emt 0:07:02]} 21. Be2 {[%emt 0:02:28]} Bc7 {[%emt 0:03:45]} 22. Nc4 {[%emt 0:03:29]} Bb5 {[%emt 0:03:38]} 23. Rd3 {[%emt 0:36:12]} Rhd8 {[%emt 0:04:27]} 24. h3 {[%emt 0:00:00]} Bc6 {[%emt 0:04:57]} 25. Bf3 {[%emt 0:00:00]} Rxd3 {[%emt 0:00:45]} 26. cxd3 {[%emt 0:00:00]} Rd8 {[%emt 0:00:22]} 27. Kc2 {[%emt 0:00:00]} Bb8 {[%emt 0:02:37]} 28. a3 {[%emt 0:00:00]} bxa3 {[%emt 0:05:58]} 29. Ra1 {[%emt 0:00:00]} Ba7 {[%emt 0:00:25]} 30. Rxa3 {[%emt 0:00:00]} Bb5 {[%emt 0:00:08]} 31. e5 {[%emt 0:00:00]} Bc5 {[%emt 0:02:38]} 32. Ra2 {[%emt 0:00:00]} Rd7 {[%emt 0:00:56]} 33. Be4 {[%emt 0:00:00]} Rc7 {[%emt 0:02:40]} 34. Kc3 {[%emt 0:00:00]} Rd7 {[%emt 0:00:15]} 35. Kd2 {[%emt 0:00:00]} (35. Kc2 $1 $11) 35... h5 {[%emt 0:12:03] Weighted Error Value: White=0.11 (very precise) /Black=0.05 (flawless) .  Mistake:       	White=2     	---        Inaccurate:     	---       	Black=1      OK:         	White=11    	Black=10     Best:        	---       	Black=1      Strong:       	---       	Black=1      Brilliant:      	---       	Black=1} 1/2-1/2

[Event "4NCL Div 1 2024-25"]
[Site "England"]
[Date "2024.11.24"]
[Round "2.19"]
[White "Camacho Collados, Jose"]
[Black "Ghasi, Ameet K"]
[Result "1/2-1/2"]
[Annotator "RC"]
[ECO "A48"]
[WhiteElo "2348"]
[BlackElo "2503"]
[PlyCount "111"]
[EventDate "2024.11.23"]
[EventType "team-tourn"]
[EventCountry "ENG"]
[SourceTitle "playchess.com"]
[Source "ChessBase"]
[SourceQuality "1"]
[TimeControl "40/6000+30:3000+30"]

1. d4 {[%emt 0:10:02]} Nf6 {[%emt 0:11:44]} 2. Nf3 {[%emt 0:00:06]} g6 {[%emt 0:00:14]} 3. Bg5 {[%emt 0:00:05]} Bg7 {[%emt 0:00:38]} 4. Nbd2 {[%emt 0:00:06]} O-O {[%emt 0:00:36]} 5. c3 {[%emt 0:00:06]} d6 {[%emt 0:01:01]} 6. e4 {[%emt 0:00:09]} c5 {[%emt 0:00:12]} 7. dxc5 {[%emt 0:00:19]} dxc5 {[%emt 0:00:03]} 8. Bc4 {[%emt 0:00:12]} Nc6 {[%emt 0:00:04]} 9. O-O {[%emt 0:00:44]} Qc7 {[%emt 0:06:49]} 10. a4 {[%emt 0:00:19]} h6 {[%emt 0:03:17]} 11. Bxf6 {[%emt 0:00:47]} exf6 {[%emt 0:07:25]} 12. Re1 {[%emt 0:00:22]} b6 {[%emt 0:03:11]} 13. Nf1 {[%emt 0:03:09]} Bb7 {[%emt 0:10:14]} 14. Ne3 {[%emt 0:02:51]} Rad8 {[%emt 0:01:26]} 15. Qc2 {[%emt 0:03:47]} Rfe8 {[%emt 0:10:31]} 16. Rad1 {[%emt 0:05:15]} Na5 {[%emt 0:08:12]} 17. Rxd8 {[%emt 0:12:12]} Rxd8 {[%emt 0:04:02]} 18. Bd5 {[%emt 0:01:36]} Bc8 {[%emt 0:00:52]} 19. b4 {[%emt 0:05:46]} Nb7 {[%emt 0:07:05]} 20. Qb3 {[%emt 0:05:03]} Nd6 {[%emt 0:05:17]} 21. Nh4 {[%emt 0:06:06]} Kf8 {[%emt 0:01:54]} 22. g3 {[%emt 0:16:06]} Re8 {[%emt 0:02:51]} 23. Nc4 {[%emt 0:09:08]} Nxc4 {[%emt 0:04:39]} 24. Qxc4 {[%emt 0:00:08]} f5 {[%emt 0:02:58]} 25. bxc5 {[%emt 0:00:54]} g5 {[%emt 0:01:13]} 26. Nf3 {[%emt 0:07:44]} Qxc5 {[%emt 0:00:50]} 27. Bxf7 {[%emt 0:01:34]} Rxe4 {[%emt 0:08:16]} 28. Rxe4 {[%emt 0:03:57]} fxe4 {[%emt 0:00:03]} 29. Nd4 {[%emt 0:00:15]} Qxc4 {[%emt 0:02:37]} 30. Bxc4 {[%emt 0:00:02]} Bxd4 {[%emt 0:00:43]} 31. cxd4 {[%emt 0:00:03]} Bh3 {[%emt 0:01:02]} 32. Bd5 {[%emt 0:02:36]} Bd7 {[%emt 0:00:11]} 33. Bxe4 {[%emt 0:09:23]} Bxa4 {[%emt 0:00:08]} 34. f4 {[%emt 0:00:43]} gxf4 {[%emt 0:02:19]} 35. gxf4 {[%emt 0:00:21]} Bb3 {[%emt 0:00:34]} 36. Kf2 {[%emt 0:01:35]} a5 {[%emt 0:00:06]} 37. Ke3 {[%emt 0:00:27]} a4 {[%emt 0:01:53]} 38. Kd2 {[%emt 0:02:19]} a3 {[%emt 0:00:15]} 39. Kc3 {[%emt 0:00:28]} a2 {[%emt 0:00:11]} 40. Kb2 {[%emt 0:00:06]} b5 {[%emt 0:01:04]} 41. Bc6 {[%emt 0:28:26]} b4 {[%emt 0:22:01]} 42. d5 {[%emt 0:01:06]} Ke7 {[%emt 0:00:08]} 43. f5 {[%emt 0:00:09]} Bc4 {[%emt 0:01:00]} 44. Ka1 {[%emt 0:15:22]} b3 {[%emt 0:01:37]} 45. Bb7 {[%emt 0:00:19]} Bd3 {[%emt 0:12:41]} 46. Bc8 {[%emt 0:00:21]} Bc4 {[%emt 0:17:19]} 47. Bb7 {[%emt 0:00:03]} Be2 {[%emt 0:01:56]} 48. Bc8 {[%emt 0:02:11]} h5 {[%emt 0:00:11]} 49. Be6 {[%emt 0:05:24]} Bd1 {[%emt 0:00:19]} 50. h4 {[%emt 0:00:57]} Bc2 {[%emt 0:00:34]} 51. Kb2 {[%emt 0:00:38]} Be4 {[%emt 0:00:45]} 52. d6+ {[%emt 0:00:57]} Kxd6 {[%emt 0:00:06]} 53. Bxb3 {[%emt 0:00:04]} Bxf5 {[%emt 0:01:06]} 54. Bf7 {[%emt 0:00:08]} Bg4 {[%emt 0:00:04]} 55. Bxh5 {[%emt 0:00:03]} Bxh5 {[%emt 0:00:04]} 56. Kxa2 {[%emt 0:00:03]} 1/2-1/2

[Event "4NCL Div 1 2024-25"]
[Site "England"]
[Date "2024.11.24"]
[Round "2.20"]
[White "O`Gorman, Tom"]
[Black "Chow, Samuel"]
[Result "1-0"]
[Annotator "TA"]
[ECO "C18"]
[WhiteElo "2380"]
[BlackElo "2348"]
[PlyCount "93"]
[EventDate "2024.11.23"]
[EventType "team-tourn"]
[EventCountry "ENG"]
[SourceTitle "playchess.com"]
[Source "ChessBase"]
[SourceQuality "1"]
[TimeControl "40/6000+30:3000+30"]

{[%evp 13,93,-12,-3,-31,-3,-10,0,0,0,-22,-6,-16,-17,-22,-52,-35,-40,-68,-74,-65,63,63,185,174,185,45,260,240,281,233,294,288,274,281,270,263,265,278,315,289,316,261,266,270,265,262,262,257,245,212,203,211,262,270,253,255,248,125,222,204,419,419,446,437,514,514,514,495,974,957,927,801,1249,1176,1961,1772,3209,784,29977,29978,29990,29974]} 1. e4 {[%emt 0:10:04]} e6 {[%emt 0:10:10]} 2. d4 {[%emt 0:00:06]} d5 {[%emt 0:00:04]} 3. Nc3 {[%emt 0:00:07]} Bb4 {[%emt 0:00:18]} 4. e5 {[%emt 0:00:07]} c5 {[%emt 0:00:12]} 5. a3 {[%emt 0:00:07]} Bxc3+ {[%emt 0:00:12]} 6. bxc3 {[%emt 0:00:08]} Ne7 {[%emt 0:00:22]} 7. h4 {[%emt 0:00:07]} Qc7 {[%emt 0:02:08]} 8. h5 {[%emt 0:00:30]} h6 {[%emt 0:00:44]} 9. Rb1 {[%emt 0:01:07]} Nbc6 {[%emt 0:01:08]} 10. Qg4 {[%emt 0:00:50]} Rg8 {[%emt 0:00:30]} 11. Bd3 {[%emt 0:00:43]} c4 {[%emt 0:00:27]} 12. Bh7 {[%emt 0:00:25] [#]} Nxe5 $1 {[%emt 0:00:15]} 13. dxe5 {[%emt 0:00:05]} (13. Qg3 Nd3+) 13... Qxe5+ {[%emt 0:00:34]} 14. Ne2 {[%emt 0:00:07]} Rh8 {[%emt 0:01:01]} 15. O-O {[%emt 0:00:08][%cal Oe2d4]} Rxh7 {[%emt 0:01:22]} 16. Nd4 {[%emt 0:00:08]} Qb8 {[%emt 0:11:03]} ({Better is} 16... Kf8 $1 $15) 17. Re1 $14 {[%emt 0:19:32][%mdl 1024] White has compensation. White is much more active. The black rooks are passive.} e5 {[%emt 0:04:10] Dodges Bf4} (17... Bd7 $14) 18. Qg3 $18 {[%emt 0:01:06]} f6 {[%emt 0:08:30][%cal Oc8d7] [#]} (18... exd4 $2 19. Bf4 $18) 19. a4 {[%emt 0:01:21]} (19. f4 e4 $11 (19... exd4 20. Qg6+ Kf8 21. Qxh7 $16)) (19. Bf4 $1 $18 {[%cal Re1e5] Rxe5! is the strong threat.} Bd7 (19... exf4 $2 20. Qg6+ Kf8 21. Qxh7 $18) 20. Nf3) 19... Kf7 $2 {[%emt 0:13:33]} (19... exd4 $2 20. Bf4 $18 (20. Qg6+ Kd7 $18)) (19... g5 $1 $14) 20. Ba3 {[%emt 0:01:39][%cal Of2f4]} Qc7 {[%emt 0:05:44] [#]} 21. f4 $1 {[%emt 0:19:13][%mdl 512]} e4 {[%emt 0:01:05]} (21... exf4 $2 22. Rxe7+ Qxe7 23. Qg6+ (23. Qxf4 $2 Qxa3 24. Nb5 Qc5+ 25. Kh2 Kg8 $19) 23... Kg8 24. Bxe7 $18) 22. Nb5 $1 {[%emt 0:04:20]} Qd7 {[%emt 0:03:01]} 23. Bxe7 {[%emt 0:04:34]} Qxe7 {[%emt 0:14:00] [#]} 24. Qg6+ $1 {[%emt 0:00:28]} Kg8 {[%emt 0:00:10] [#]} 25. Nc7 $1 {[%emt 0:00:33]} Bf5 {[%emt 0:04:56]} (25... Qc5+ $6 26. Kh1 Bd7 27. Nxa8 $18) 26. Qxf5 {[%emt 0:01:38]} Qc5+ {[%emt 0:00:45]} 27. Kh1 {[%emt 0:00:22]} Qxc7 {[%emt 0:00:15]} 28. Qxd5+ {[%emt 0:00:07]} Qf7 {[%emt 0:01:53]} 29. Qxf7+ {[%emt 0:00:46]} ({Don't do} 29. Qxe4 $6 Qxh5+ 30. Kg1 g5 $18 (30... Qc5+ 31. Kf1 $16)) 29... Kxf7 {[%emt 0:00:07][%cal Bg8f7,Bf7e6,Be6f5,Bf5g4,Bg4f4][%mdl 32]} 30. Rxb7+ {[%emt 0:00:11][%mdl 4096] Endgame KRR-KRR} Ke6 {[%emt 0:00:51]} 31. Rxe4+ {[%emt 0:00:31]} Kf5 {[%emt 0:01:08]} 32. Rxc4 {[%emt 0:00:34]} a6 {[%emt 0:00:58]} 33. Kh2 {[%emt 0:02:30]} Kg4 {[%emt 0:02:57]} 34. Rc5 {[%emt 0:06:59]} Rd8 {[%emt 0:05:16]} 35. Rb6 {[%emt 0:03:15]} (35. a5 $18) 35... Rd2 {[%emt 0:03:37]} (35... Rhh8 $16 36. Rxa6 Rd2) 36. Rxa6 {[%emt 0:00:27]} Rxc2 $2 {[%emt 0:00:41]} (36... Rh8 37. Rc7 Rg8) 37. Ra7 {[%emt 0:01:52]} Kxf4 {[%emt 0:00:43]} 38. a5 {[%emt 0:00:29]} Ra2 {[%emt 0:00:54]} 39. Rc8 {[%emt 0:01:50] Prevents Rh8} Kg4 {[%emt 0:00:44]} 40. c4 {[%emt 0:01:57][%cal Bc3c4,Bc4c5][%mdl 32]} f5 {[%emt 0:02:41]} (40... Kxh5 $142 41. c5 Kg6) 41. c5 {[%emt 0:52:41]} f4 {[%emt 0:50:55]} 42. Rf8 {[%emt 0:00:36]} Rc2 {[%emt 0:01:09]} 43. Re7 {[%emt 0:02:44]} Rxc5 {[%emt 0:01:19]} 44. a6 {[%emt 0:00:08][%cal Ba5a6,Ba6a7][%mdl 32]} Rxh5+ {[%emt 0:00:17]} 45. Kg1 {[%emt 0:00:06]} Kg3 {[%emt 0:00:10]} 46. a7 {[%emt 0:00:44]} Rc5 {[%emt 0:00:09]} 47. Kf1 {[%emt 0:00:18]} (47. a8=B $2 {gets mated.} Rc1+) 1-0